Workbook

Sheet 汇总
A1: 人保财险政策性农业保险汇总表（2025年10-12月）
A3: 险种名称 | B3: 投保农户数量 (户次) | C3: 投保面积/投保数量 (亩/头/只等) | D3: 单位保额（元） | E3: 费率 | F3: 单位保险费（元） | G3: 总保险费（元） | H3: 保费构成 | R3: 农户已缴保费（元） | S3: 申请补贴（元）
H4: 中央财政 | J4: 省级财政 | L4: 设区市财政 | N4: 县（市、区）财政 | P4: 农户自缴
H5: 比例 | I5: 金额（元） | J5: 比例 | K5: 金额（元） | L5: 比例 | M5: 金额（元） | N5: 比例 | O5: 金额（元） | P5: 比例 | Q5: 金额（元）
A6: 设施大棚 | B6: 9 | C6: 151.68 | D6: 4800.00 | E6: 2.7%/18% | F6: 252.00 | G6: =C6*F6 -> 38223.36 | H6: 0% | I6: 0.00 | J6: 0% | K6: 0.00 | L6: 0% | M6: 0.00 | N6: 90% | O6: 34401.03 | P6: 10% | Q6: 3822.33 | R6: =Q6 -> 3822.33 | S6: =G6-R6 -> 34401.03
A7: 羊 | B7: 3 | C7: 2939.00 | D7: 900.00 | E7: 8.00% | F7: 72.00 | G7: =C7*F7 -> 211608.00 | H7: 0% | I7: 0.00 | J7: 0% | K7: 0.00 | L7: 0% | M7: 0.00 | N7: 85% | O7: 179866.80 | P7: 15% | Q7: 31741.20 | R7: =Q7 -> 31741.20 | S7: =G7-R7 -> 179866.80
A8: 育肥猪 | B8: 13 | C8: 6596.00 | D8: 1000.00 | E8: 4.00% | F8: 40.00 | G8: =C8*F8 -> 263840.00 | H8: 40% | I8: 105536.00 | J8: 20% | K8: 52768.00 | L8: 0% | M8: 0.00 | N8: 20% | O8: 52768.00 | P8: 20% | Q8: 52768.00 | R8: =Q8 -> 52768.00 | S8: =G8-R8 -> 211072.00
A9: 能繁母猪 | B9: 8 | C9: 35.00 | D9: 1500.00 | E9: 7.00% | F9: 105.00 | G9: =C9*F9 -> 3675.00 | H9: 40% | I9: 1470.00 | J9: 20% | K9: 735.00 | L9: 0% | M9: 0.00 | N9: 20% | O9: 735.00 | P9: 20% | Q9: 735.00 | R9: =Q9 -> 735.00 | S9: =G9-R9 -> 2940.00
A10: 棚内作物 | B10: 10 | C10: 301.68 | D10: 4000.00 | E10: 6.00% | F10: 240.00 | G10: =C10*F10 -> 72403.20 | H10: 0% | I10: 0.00 | J10: 0% | K10: 0.00 | L10: 0% | M10: 0.00 | N10: 80% | O10: 57922.56 | P10: 20% | Q10: 14480.64 | R10: =Q10 -> 14480.64 | S10: =G10-Q10 -> 57922.56
A11: 合计 | B11: =SUM(B6:B10) -> 43 | G11: =SUM(G6:G10) -> 589749.56 | I11: =SUM(I6:I10) -> 107006.00 | K11: =SUM(K6:K10) -> 53503.00 | M11: =SUM(M6:M10) -> 0.00 | O11: =SUM(O6:O10) -> 325693.39 | Q11: =SUM(Q6:Q10) -> 103547.17 | R11: =SUM(R6:R10) -> 103547.17 | S11: =SUM(S6:S10) -> 486202.39

Sheet 高效
A1: 人保财险政策性农业保险明细表（2025年10-12月）
A2: 序号 | B2: 乡镇 | C2: 保单号 | D2: 被保险人或投保人 | E2: 标的地址 | F2: 联系电话 | G2: 险种名称 | H2: 承保户次 | I2: 承保数量（亩、只、头） | J2: 总保费（元） | K2: 农户自缴保费（元） | L2: 各级财政补贴（元） | M2: 起保日期 | N2: 截止日期 | O2: 汇款日期 | P2: 汇款金额 | Q2: 汇款人 | R2: 交易流水号（网银回单）
A3: 1 | B3: 二甲镇 | C3: P8UF20253206N000001956 | D3: 宋军 | E3: 通州区二甲镇定兴桥村31组等 | F3: 1521****1 | G3: 设施大棚 | H3: 1 | I3: 18.00 | J3: 4536.00 | K3: 453.60 | L3: 4082.40 | M3: 2025-12-13 | N3: 2026-12-12 | O3: 2025-12-10 | P3: 1317.60 | Q3: 陈欢欢 | R3: 00649844
A4: 2 | B4: 东社镇 | C4: P8UF20253206N000001982 | D4: 校其明 | E4: 通州区东社镇香台村8组 | F4: 1522****8 | G4: 设施大棚 | H4: 1 | I4: 23.85 | J4: 6010.20 | K4: 601.02 | L4: 5409.18 | M4: 2025-12-20 | N4: 2026-12-19 | O4: 2025-12-10 | P4: 1745.82 | Q4: 校其明 | R4: 72969839
A5: 3 | B5: 十总镇 | C5: P8UF20253206N000001955 | D5: 荣德忠 | E5: 通州区十总镇二爻居32组 | F5: 1348****1 | G5: 设施大棚 | H5: 1 | I5: 10.43 | J5: 2628.36 | K5: 262.83 | L5: 2365.53 | M5: 2025-12-18 | N5: 2026-12-17 | O5: 2025-12-10 | P5: 763.50 | Q5: 荣德忠 | R5: 13251840
A6: 4 | B6: 二甲镇 | C6: P8UF20253206N000002033 | D6: 李东悦 | E6: 通州区二甲镇路中村1组 | F6: 1892****5 | G6: 设施大棚 | H6: 1 | I6: 19.20 | J6: 4838.40 | K6: 483.84 | L6: 4354.56 | M6: 2025-12-27 | N6: 2026-12-26 | O6: 2025-12-24 | P6: 1405.44 | Q6: 李东悦 | R6: 78067395
A7: 5 | B7: 二甲镇 | C7: P8UF20253206N000002017 | D7: 徐克 | E7: 通州区二甲镇余西居30、32组 | F7: 1338****6 | G7: 设施大棚 | H7: 1 | I7: 10.00 | J7: 2520.00 | K7: 252.00 | L7: 2268.00 | M7: 2025-12-27 | N7: 2026-12-26 | O7: 2025-12-23 | P7: 732.00 | Q7: 徐克 | R7: 09601920
A8: 6 | B8: 二甲镇 | C8: P8UF20253206N000002015 | D8: 李东阳 | E8: 通州区二甲镇路中村2组 | F8: 1875****5 | G8: 设施大棚 | H8: 1 | I8: 17.20 | J8: 4334.40 | K8: 433.44 | L8: 3900.96 | M8: 2025-12-27 | N8: 2026-12-26 | O8: 2025-12-23 | P8: 1259.04 | Q8: 李东阳 | R8: 43835843
A9: 7 | B9: 东社镇 | C9: P8UF20253206N000002032 | D9: 于洪伟 | E9: 通州区东社镇苴西村24组 | F9: 1777****9 | G9: 设施大棚 | H9: 1 | I9: 27.00 | J9: 6804.00 | K9: 680.40 | L9: 6123.60 | M9: 2025-12-27 | N9: 2026-12-26 | O9: 2025-12-23 | P9: 1976.40 | Q9: 于洪伟 | R9: 44801920
A10: 8 | B10: 东社镇 | C10: P8UF20253206N000002035 | D10: 程相国 | E10: 通州区东社镇苴西村15组 | F10: 1531****5 | G10: 设施大棚 | H10: 1 | I10: 13.00 | J10: 3276.00 | K10: 327.60 | L10: 2948.40 | M10: 2025-12-27 | N10: 2026-12-26 | O10: 2025-12-23 | P10: 951.60 | Q10: 于洪伟 | R10: 57708388
A11: 9 | B11: 东社镇 | C11: P8UF20253206N000002020 | D11: 杨振合 | E11: 通州区东社镇苴西村14组 | F11: 1811****1 | G11: 设施大棚 | H11: 1 | I11: 13.00 | J11: 3276.00 | K11: 327.60 | L11: 2948.40 | M11: 2025-12-27 | N11: 2026-12-26 | O11: 2025-12-23 | P11: 951.60 | Q11: 于洪伟 | R11: 56850920
G12: 设施大棚 汇总 | H12: =SUBTOTAL(9,H3:H11) -> 9 | I12: =SUBTOTAL(9,I3:I11) -> 151.68 | J12: =SUBTOTAL(9,J3:J11) -> 38223.36 | K12: =SUBTOTAL(9,K3:K11) -> 3822.33 | L12: =SUBTOTAL(9,L3:L11) -> 34401.03
A13: 10 | B13: 东社镇 | C13: PIVK20253206N000000673 | D13: 徐永义 | E13: 通州区东社镇严北村12组 | F13: 1586****3 | G13: 羊 | H13: 1 | I13: 747.00 | J13: 53784.00 | K13: 8067.60 | L13: 45716.40 | M13: 2025-10-16 | N13: 2026-10-15 | O13: 2025-10-13 | P13: 8067.60 | Q13: 王陆萍 | R13: 53745785
A14: 11 | B14: 西亭镇 | C14: PIVK20253206N000000706 | D14: 丁永华 | E14: 通州区西亭镇纱场居3组 | F14: 1386****8 | G14: 羊 | H14: 1 | I14: 896.00 | J14: 64512.00 | K14: 9676.80 | L14: 54835.20 | M14: 2025-12-20 | N14: 2026-12-19 | O14: 2025-12-15 | P14: 9676.80 | Q14: 丁永华 | R14: 67193356
A15: 12 | B15: 东社镇 | C15: PIVK20253206N000000707 | D15: 曹杰 | E15: 通州区东社镇苴西村20组 | F15: 1891****0 | G15: 羊 | H15: 1 | I15: 1296.00 | J15: 93312.00 | K15: 13996.80 | L15: 79315.20 | M15: 2025-12-25 | N15: 2026-12-24 | O15: 2025-12-23 | P15: 13996.80 | Q15: 曹杰 | R15: 77691922
G16: 羊 汇总 | H16: =SUBTOTAL(9,H13:H15) -> 3 | I16: =SUBTOTAL(9,I13:I15) -> 2939.00 | J16: =SUBTOTAL(9,J13:J15) -> 211608.00 | K16: =SUBTOTAL(9,K13:K15) -> 31741.20 | L16: =SUBTOTAL(9,L13:L15) -> 179866.80
A17: 13 | B17: 西亭镇 | C17: PIZG20253206N000000374 | D17: 秦锡和 | E17: 通州区西亭镇九总渡村15组 | F17: 1879****6 | G17: 育肥猪 | H17: 1 | I17: 100.00 | J17: 4000.00 | K17: 800.00 | L17: 3200.00 | M17: 2025-10-23 | N17: 2026-10-22 | O17: 2025-10-16 | P17: 1070.00 | Q17: 姜茂华 | R17: 22971805
A18: 14 | B18: 西亭镇 | C18: PIZG20253206N000000365 | D18: 吴福荣 | E18: 通州区西亭镇草庙村41组 | F18: 1391****4 | G18: 育肥猪 | H18: 1 | I18: 25.00 | J18: 1000.00 | K18: 200.00 | L18: 800.00 | M18: 2025-10-23 | N18: 2026-10-22 | O18: 2025-10-14 | P18: 4393.00 | Q18: 姜茂华 | R18: 27142399
A19: 15 | B19: 西亭镇 | C19: PIZG20253206N000000366 | D19: 李桂青 | E19: 通州区西亭镇亭东村39组 | F19: 1585****0 | G19: 育肥猪 | H19: 1 | I19: 250.00 | J19: 10000.00 | K19: 2000.00 | L19: 8000.00 | M19: 2025-10-23 | N19: 2026-10-22 | O19: 2025-10-14 | P19: 4393.00 | Q19: 姜茂华 | R19: 27142399
A20: 16 | B20: 西亭镇 | C20: PIZG20253206N000000371 | D20: 于世峰 | E20: 通州区西亭镇华芦村22组 | F20: 1381****5 | G20: 育肥猪 | H20: 1 | I20: 125.00 | J20: 5000.00 | K20: 1000.00 | L20: 4000.00 | M20: 2025-10-23 | N20: 2026-10-22 | O20: 2025-10-15 | P20: 1684.00 | Q20: 姜茂华 | R20: 43528802
A21: 17 | B21: 西亭镇 | C21: PIZG20253206N000000372 | D21: 戴建兵 | E21: 通州区西亭镇西亭居28组 | F21: 1826****8 | G21: 育肥猪 | H21: 1 | I21: 75.00 | J21: 3000.00 | K21: 600.00 | L21: 2400.00 | M21: 2025-10-23 | N21: 2026-10-22 | O21: 2025-10-15 | P21: 1684.00 | Q21: 姜茂华 | R21: 43528802
A22: 18 | B22: 西亭镇 | C22: PIZG20253206N000000375 | D22: 张慎宏 | E22: 通州区西亭镇西禅寺村44组 | F22: 1316****5 | G22: 育肥猪 | H22: 1 | I22: 18.00 | J22: 720.00 | K22: 144.00 | L22: 576.00 | M22: 2025-10-23 | N22: 2026-10-22 | O22: 2025-10-16 | P22: 1070.00 | Q22: 姜茂华 | R22: 22971805
A23: 19 | B23: 西亭镇 | C23: PIZG20253206N000000370 | D23: 凌杰 | E23: 通州区西亭镇龙坝村16组 | F23: 1886****3 | G23: 育肥猪 | H23: 1 | I23: 25.00 | J23: 1000.00 | K23: 200.00 | L23: 800.00 | M23: 2025-10-23 | N23: 2026-10-22 | O23: 2025-10-14 | P23: 4393.00 | Q23: 姜茂华 | R23: 27142399
A24: 20 | B24: 西亭镇 | C24: PIZG20253206N000000373 | D24: 俞丽 | E24: 通州区西亭镇亭东村39组 | F24: 1525****9 | G24: 育肥猪 | H24: 1 | I24: 125.00 | J24: 5000.00 | K24: 1000.00 | L24: 4000.00 | M24: 2025-10-23 | N24: 2026-10-22 | O24: 2025-10-14 | P24: 4393.00 | Q24: 姜茂华 | R24: 27142399
A25: 21 | B25: 十总镇 | C25: PIZG20253206N000000364 | D25: 夏国兵 | E25: 通州区十总镇新雁村43组 | F25: 1310****8 | G25: 育肥猪 | H25: 1 | I25: 88.00 | J25: 3520.00 | K25: 704.00 | L25: 2816.00 | M25: 2025-10-17 | N25: 2026-10-16 | O25: 2025-10-14 | P25: 704.00 | Q25: 姜茂华 | R25: 75645399
A26: 22 | B26: 西亭镇 | C26: PIZG20253206N000000369 | D26: 于德志 | E26: 通州区西亭镇九总渡村7组 | F26: 1876****6 | G26: 育肥猪 | H26: 1 | I26: 50.00 | J26: 2000.00 | K26: 400.00 | L26: 1600.00 | M26: 2025-10-23 | N26: 2026-10-22 | O26: 2025-10-14 | P26: 4393.00 | Q26: 姜茂华 | R26: 27142399
A27: 23 | B27: 西亭镇 | C27: PIZG20253206N000000379 | D27: 许锋 | E27: 通州区西亭镇亭东村47组 | F27: 1811****7 | G27: 育肥猪 | H27: 1 | I27: 50.00 | J27: 2000.00 | K27: 400.00 | L27: 1600.00 | M27: 2025-10-23 | N27: 2026-10-22 | O27: 2025-10-21 | P27: 652.00 | Q27: 姜茂华 | R27: 16304428
A28: 24 | B28: 西亭镇 | C28: PIZG20253206N000000368 | D28: 王国清 | E28: 通州区西亭镇龙坝村36组 | F28: 1518****8 | G28: 育肥猪 | H28: 1 | I28: 40.00 | J28: 1600.00 | K28: 320.00 | L28: 1280.00 | M28: 2025-10-23 | N28: 2026-10-22 | O28: 2025-10-14 | P28: 4393.00 | Q28: 姜茂华 | R28: 27142399
A29: 25 | B29: 东社镇 | C29: PIZG20253206N000000411 | D29: 浙江青莲农牧科技有限公司 | E29: 通州区东社镇香台村15组 | F29: 1836****3 | G29: 育肥猪 | H29: 1 | I29: 5625.00 | J29: 225000.00 | K29: 45000.00 | L29: 180000.00 | M29: 2025-12-20 | N29: 2026-12-19 | O29: 2025-12-11 | P29: 45000.00 | Q29: 浙江青莲农牧科技有限公司 | R29: 07714316
G30: 育肥猪 汇总 | H30: =SUBTOTAL(9,H17:H29) -> 13 | I30: =SUBTOTAL(9,I17:I29) -> 6596.00 | J30: =SUBTOTAL(9,J17:J29) -> 263840.00 | K30: =SUBTOTAL(9,K17:K29) -> 52768.00 | L30: =SUBTOTAL(9,L17:L29) -> 211072.00
A31: 26 | B31: 西亭镇 | C31: PIZM20253206N000000297 | D31: 凌杰 | E31: 通州区西亭镇龙坝村16组 | F31: 1886****3 | G31: 能繁母猪 | H31: 1 | I31: 1.00 | J31: 105.00 | K31: 21.00 | L31: 84.00 | M31: 2025-10-23 | N31: 2026-10-22 | O31: 2025-10-14 | P31: 4393.00 | Q31: 姜茂华 | R31: 27142399
A32: 27 | B32: 西亭镇 | C32: PIZM20253206N000000299 | D32: 秦锡和 | E32: 通州区西亭镇九总渡村15组 | F32: 1879****6 | G32: 能繁母猪 | H32: 1 | I32: 4.00 | J32: 420.00 | K32: 84.00 | L32: 336.00 | M32: 2025-10-23 | N32: 2026-10-22 | O32: 2025-10-16 | P32: 1070.00 | Q32: 姜茂华 | R32: 22971805
A33: 28 | B33: 西亭镇 | C33: PIZM20253206N000000301 | D33: 许锋 | E33: 通州区西亭镇亭东村47组 | F33: 1811****7 | G33: 能繁母猪 | H33: 1 | I33: 12.00 | J33: 1260.00 | K33: 252.00 | L33: 1008.00 | M33: 2025-10-23 | N33: 2026-10-22 | O33: 2025-10-21 | P33: 652.00 | Q33: 姜茂华 | R33: 16304428
A34: 29 | B34: 西亭镇 | C34: PIZM20253206N000000295 | D34: 王国清 | E34: 通州区西亭镇龙坝村36组 | F34: 1518****8 | G34: 能繁母猪 | H34: 1 | I34: 1.00 | J34: 105.00 | K34: 21.00 | L34: 84.00 | M34: 2025-10-23 | N34: 2026-10-22 | O34: 2025-10-14 | P34: 4393.00 | Q34: 姜茂华 | R34: 27142399
A35: 30 | B35: 西亭镇 | C35: PIZM20253206N000000300 | D35: 张慎宏 | E35: 通州区西亭镇西禅寺村44组 | F35: 1316****5 | G35: 能繁母猪 | H35: 1 | I35: 2.00 | J35: 210.00 | K35: 42.00 | L35: 168.00 | M35: 2025-10-23 | N35: 2026-10-22 | O35: 2025-10-16 | P35: 1070.00 | Q35: 姜茂华 | R35: 22971805
A36: 31 | B36: 西亭镇 | C36: PIZM20253206N000000294 | D36: 李桂青 | E36: 通州区西亭镇亭东村39组 | F36: 1585****0 | G36: 能繁母猪 | H36: 1 | I36: 9.00 | J36: 945.00 | K36: 189.00 | L36: 756.00 | M36: 2025-10-23 | N36: 2026-10-22 | O36: 2025-10-14 | P36: 4393.00 | Q36: 姜茂华 | R36: 27142399
A37: 32 | B37: 西亭镇 | C37: PIZM20253206N000000298 | D37: 于德志 | E37: 通州区西亭镇九总渡村7组 | F37: 1876****6 | G37: 能繁母猪 | H37: 1 | I37: 2.00 | J37: 210.00 | K37: 42.00 | L37: 168.00 | M37: 2025-10-23 | N37: 2026-10-22 | O37: 2025-10-14 | P37: 4393.00 | Q37: 姜茂华 | R37: 27142399
A38: 33 | B38: 西亭镇 | C38: PIZM20253206N000000296 | D38: 戴建兵 | E38: 通州区西亭镇西亭居28组 | F38: 1826****8 | G38: 能繁母猪 | H38: 1 | I38: 4.00 | J38: 420.00 | K38: 84.00 | L38: 336.00 | M38: 2025-10-23 | N38: 2026-10-22 | O38: 2025-10-15 | P38: 1684.00 | Q38: 姜茂华 | R38: 43528802
G39: 能繁母猪 汇总 | H39: =SUBTOTAL(9,H31:H38) -> 8 | I39: =SUBTOTAL(9,I31:I38) -> 35.00 | J39: =SUBTOTAL(9,J31:J38) -> 3675.00 | K39: =SUBTOTAL(9,K31:K38) -> 735.00 | L39: =SUBTOTAL(9,L31:L38) -> 2940.00
A40: 34 | B40: 二甲镇 | C40: PPB220253206N000001495 | D40: 宋军 | E40: 通州区二甲镇定兴桥村31组等 | F40: 1521****1 | G40: 棚内作物 | H40: 1 | I40: 18.00 | J40: 4320.00 | K40: 864.00 | L40: 3456.00 | M40: 2025-12-13 | N40: 2026-12-12 | O40: 2025-12-10 | P40: 1317.60 | Q40: 陈欢欢 | R40: 00649844
A41: 35 | B41: 东社镇 | C41: PPB220253206N000001494 | D41: 校其明 | E41: 通州区东社镇香台村8组 | F41: 1522****8 | G41: 棚内作物 | H41: 1 | I41: 23.85 | J41: 5724.00 | K41: 1144.80 | L41: 4579.20 | M41: 2025-12-20 | N41: 2026-12-19 | O41: 2025-12-10 | P41: 1745.82 | Q41: 校其明 | R41: 72969839
A42: 36 | B42: 十总镇 | C42: PPB220253206N000001496 | D42: 杨锡飞 | E42: 通州区十总镇迎阳村48组等 | F42: 1522****0 | G42: 棚内作物 | H42: 1 | I42: 150.00 | J42: 36000.00 | K42: 7200.00 | L42: 28800.00 | M42: 2025-12-18 | N42: 2026-12-17 | O42: 2025-12-10 | P42: 7200.00 | Q42: 杨锡飞 | R42: 72894839
A43: 37 | B43: 十总镇 | C43: PPB220253206N000001493 | D43: 荣德忠 | E43: 通州区十总镇二爻居32组 | F43: 1348****1 | G43: 棚内作物 | H43: 1 | I43: 10.43 | J43: 2503.20 | K43: 500.64 | L43: 2002.56 | M43: 2025-12-18 | N43: 2026-12-17 | O43: 2025-12-10 | P43: 763.50 | Q43: 荣德忠 | R43: 13251840
A44: 38 | B44: 二甲镇 | C44: PPB220253206N000001553 | D44: 李东悦 | E44: 通州区二甲镇路中村1组 | F44: 1892****5 | G44: 棚内作物 | H44: 1 | I44: 19.20 | J44: 4608.00 | K44: 921.60 | L44: 3686.40 | M44: 2025-12-27 | N44: 2026-12-26 | O44: 2025-12-24 | P44: 1405.44 | Q44: 李东悦 | R44: 78067395
A45: 39 | B45: 二甲镇 | C45: PPB220253206N000001534 | D45: 徐克 | E45: 通州区二甲镇余西居30、32组 | F45: 1338****6 | G45: 棚内作物 | H45: 1 | I45: 10.00 | J45: 2400.00 | K45: 480.00 | L45: 1920.00 | M45: 2025-12-27 | N45: 2026-12-26 | O45: 2025-12-23 | P45: 732.00 | Q45: 徐克 | R45: 09601920
A46: 40 | B46: 二甲镇 | C46: PPB220253206N000001533 | D46: 李东阳 | E46: 通州区二甲镇路中村2组 | F46: 1875****5 | G46: 棚内作物 | H46: 1 | I46: 17.20 | J46: 4128.00 | K46: 825.60 | L46: 3302.40 | M46: 2025-12-27 | N46: 2026-12-26 | O46: 2025-12-23 | P46: 1259.04 | Q46: 李东阳 | R46: 43835843
A47: 41 | B47: 东社镇 | C47: PPB220253206N000001552 | D47: 于洪伟 | E47: 通州区东社镇苴西村24组 | F47: 1777****9 | G47: 棚内作物 | H47: 1 | I47: 27.00 | J47: 6480.00 | K47: 1296.00 | L47: 5184.00 | M47: 2025-12-27 | N47: 2026-12-26 | O47: 2025-12-23 | P47: 1976.40 | Q47: 于洪伟 | R47: 44801920
A48: 42 | B48: 东社镇 | C48: PPB220253206N000001554 | D48: 程相国 | E48: 通州区东社镇苴西村15组 | F48: 1531****5 | G48: 棚内作物 | H48: 1 | I48: 13.00 | J48: 3120.00 | K48: 624.00 | L48: 2496.00 | M48: 2025-12-27 | N48: 2026-12-26 | O48: 2025-12-23 | P48: 951.60 | Q48: 于洪伟 | R48: 57708388
A49: 43 | B49: 东社镇 | C49: PPB220253206N000001538 | D49: 杨振合 | E49: 通州区东社镇苴西村14组 | F49: 1811****1 | G49: 棚内作物 | H49: 1 | I49: 13.00 | J49: 3120.00 | K49: 624.00 | L49: 2496.00 | M49: 2025-12-27 | N49: 2026-12-26 | O49: 2025-12-23 | P49: 951.60 | Q49: 于洪伟 | R49: 56850920
G50: 棚内作物 汇总 | H50: =SUBTOTAL(9,H40:H49) -> 10 | I50: =SUBTOTAL(9,I40:I49) -> 301.68 | J50: =SUBTOTAL(9,J40:J49) -> 72403.20 | K50: =SUBTOTAL(9,K40:K49) -> 14480.64 | L50: =SUBTOTAL(9,L40:L49) -> 57922.56
G51: 总计 | H51: =SUBTOTAL(9,H3:H49) -> 43 | J51: =SUBTOTAL(9,J3:J49) -> 589749.56 | K51: =SUBTOTAL(9,K3:K49) -> 103547.17 | L51: =SUBTOTAL(9,L3:L49) -> 486202.39
